[Event "Skanderborg Skakklub SmukSkak EMT"]
[Site "Niels Ebbesenskolen, Skanderborg, Denmark"]
[Date "2020.08.23"]
[Round "5.3"]
[White "Wilton, Lars"]
[Black "Pedersen, Lars Foldager"]
[Result "1-0"]
[TimeControl "90 min. til 40 træk, derefter 30 min. plus opsparet tid til resten af partiet med 30 sek. tillæg pr. træk fra træk ét."]
[WhiteFideId "1404962"]
[BlackFideId "1417649"]
[WhiteElo "1984"]
[BlackElo "1959"]

1. g3 {[%clk 01:30:56]} {[%emt 00:00:02]} Nf6 {[%clk 01:30:48]} {[%emt
00:00:14]} 2. Bg2 {[%clk 01:30:59]} {[%emt 00:00:28]} d5 {[%clk 01:30:56]}
{[%emt 00:00:21]} 3. f4 {[%clk 01:31:13]} {[%emt 00:00:16]} Nbd7 {[%emt
00:02:06]} 4. Nf3 {[%emt 00:00:11]} e6 {[%clk 01:28:25]} {[%emt 00:00:44]} 5.
d3 {[%clk 01:31:26]} {[%emt 00:00:17]} c5 {[%clk 01:28:26]} {[%emt 00:00:29]} 6.
Nc3 {[%clk 01:31:20]} {[%emt 00:00:37]} d4 {[%clk 01:27:25]} {[%emt 00:01:31]}
7. Ne4 {[%clk 01:31:40]} {[%emt 00:00:10]} Qa5+ {[%clk 01:25:16]} {[%emt
00:02:38]} 8. Bd2 {[%clk 01:30:48]} {[%emt 00:01:23]} Qb6 {[%clk 01:24:39]}
{[%emt 00:01:07]} 9. Nxf6+ {[%clk 01:31:03]} {[%emt 00:00:15]} Nxf6 {[%clk
01:23:03]} {[%emt 00:02:06]} 10. Rb1 {[%clk 01:26:28]} {[%emt 00:05:05]} Be7
{[%clk 01:19:43]} {[%emt 00:03:50]} 11. O-O {[%clk 01:22:49]} {[%emt 00:04:08]}
Bd7 {[%clk 01:16:19]} {[%emt 00:03:55]} 12. Ne5 {[%clk 01:22:57]} {[%emt
00:00:23]} Bb5 {[%clk 01:15:15]} {[%emt 00:01:33]} 13. c4 {[%clk 01:23:08]}
{[%emt 00:00:18]} dxc3 {[%clk 01:14:57]} {[%emt 00:00:49]} 14. bxc3 {[%clk
01:23:11]} {[%emt 00:00:27]} c4+ {[%clk 01:10:37]} {[%emt 00:04:50]} 15. d4
{[%clk 01:22:01]} {[%emt 00:01:40]} Qa6 {[%clk 01:10:11]} {[%emt 00:00:55]} 16.
Qc2 {[%clk 01:13:58]} {[%emt 00:08:35]} Ba3 {[%clk 01:09:46]} {[%emt 00:00:54]}
17. Rxb5 {[%clk 01:05:41]} {[%emt 00:08:47]} Qxb5 {[%clk 01:01:22]} {[%emt
00:08:54]} 18. Rb1 {[%clk 01:06:01]} {[%emt 00:00:09]} Qa5 {[%clk 01:00:22]}
{[%emt 00:01:31]} 19. Nxc4 {[%clk 01:02:42]} {[%emt 00:03:49]} Qa6 {[%clk
00:57:08]} {[%emt 00:03:45]} 20. Qb3 {[%clk 01:02:31]} {[%emt 00:00:40]} Bb4
{[%clk 00:48:54]} {[%emt 00:08:44]} 21. Qxb4 {[%clk 01:01:30]} {[%emt
00:01:30]} Nd5 {[%clk 00:42:57]} {[%emt 00:06:28]} 22. Qc5 {[%clk 00:54:44]}
{[%emt 00:07:16]} Rd8 {[%clk 00:33:58]} {[%emt 00:09:29]} 23. Kf2 {[%clk
00:52:35]} {[%emt 00:02:39]} b6 {[%clk 00:31:43]} {[%emt 00:02:46]} 24. Qc6+
{[%clk 00:51:02]} {[%emt 00:02:03]} Kf8 {[%clk 00:30:49]} {[%emt 00:01:23]} 25.
Bxd5 {[%clk 00:49:35]} {[%emt 00:01:58]} exd5 {[%clk 00:30:35]} {[%emt
00:00:44]} 26. Nd6 {[%clk 00:44:32]} {[%emt 00:05:33]} Qa3 {[%clk 00:30:36]}
{[%emt 00:00:29]} 27. Rb4 {[%clk 00:44:05]} {[%emt 00:00:55]} g6 {[%clk
00:26:07]} {[%emt 00:05:00]} 28. Qc7 {[%clk 00:44:13]} {[%emt 00:00:23]} Kg7
{[%clk 00:26:23]} {[%emt 00:00:14]} 29. Qxf7+ {[%clk 00:44:31]} {[%emt
00:00:12]} Kh6 {[%clk 00:26:24]} {[%emt 00:00:28]} 30. Qxd5 {[%clk 00:38:00]}
{[%emt 00:07:01]} Rhf8 {[%clk 00:22:30]} {[%emt 00:04:24]} 31. Nf7+ {[%clk
00:35:33]} {[%emt 00:02:57]} Rxf7 {[%clk 00:22:04]} {[%emt 00:00:56]} 32. Qxf7
{[%emt 00:08:41]} 1-0

[Event "Skanderborg Skakklub SmukSkak EMT"]
[Site "Niels Ebbesenskolen, Skanderborg, Denmark"]
[Date "2020.08.23"]
[Round "5.4"]
[White "Hansen, Lars"]
[Black "Fogh, Jens Olaf Svanholm"]
[Result "1/2-1/2"]
[TimeControl "90 min. til 40 træk, derefter 30 min. plus opsparet tid til resten af partiet med 30 sek. tillæg pr. træk fra træk ét."]
[WhiteFideId "1402528"]
[BlackFideId "1409476"]
[WhiteElo "2223"]
[BlackElo "2117"]

1. d4 {[%clk 01:30:10]} {[%emt 00:00:49]} d5 {[%clk 01:30:30]} {[%emt
00:00:31]} 2. c4 {[%clk 01:29:49]} {[%emt 00:00:50]} e6 {[%clk 01:30:19]}
{[%emt 00:00:40]} 3. Nc3 {[%clk 01:29:53]} {[%emt 00:00:27]} Nf6 {[%clk
01:30:17]} {[%emt 00:00:33]} 4. cxd5 {[%clk 01:30:05]} {[%emt 00:00:18]} exd5
{[%clk 01:30:38]} {[%emt 00:00:09]} 5. Bg5 {[%clk 01:30:30]} {[%emt 00:00:05]}
c6 {[%clk 01:23:32]} {[%emt 00:07:37]} 6. Qc2 {[%clk 01:29:44]} {[%emt
00:01:15]} Be7 {[%clk 01:20:57]} {[%emt 00:03:05]} 7. e3 {[%clk 01:28:20]}
{[%emt 00:01:54]} h6 {[%clk 01:11:35]} {[%emt 00:09:53]} 8. Bh4 {[%clk
01:27:55]} {[%emt 00:00:54]} O-O {[%clk 01:11:19]} {[%emt 00:00:47]} 9. Bd3
{[%clk 01:28:19]} {[%emt 00:00:05]} c5 {[%clk 01:10:10]} {[%emt 00:01:40]} 10.
Nf3 {[%clk 01:23:49]} {[%emt 00:04:58]} Nc6 {[%clk 01:06:42]} {[%emt 00:04:00]}
11. dxc5 {[%clk 01:22:37]} {[%emt 00:01:42]} d4 {[%clk 01:06:47]} {[%emt
00:00:25]} 12. Nxd4 {[%clk 01:08:16]} {[%emt 00:14:51]} Nxd4 {[%clk 01:06:40]}
{[%emt 00:00:36]} 13. exd4 {[%clk 01:08:41]} {[%emt 00:00:05]} Qxd4 {[%clk
01:06:58]} {[%emt 00:00:11]} 14. Bg3 {[%clk 01:08:25]} {[%emt 00:00:46]} Qxc5
{[%clk 01:06:13]} {[%emt 00:01:15]} 15. O-O {[%clk 01:08:40]} {[%emt 00:00:16]}
Be6 {[%clk 01:05:08]} {[%emt 00:01:34]} 16. Rfe1 {[%clk 01:07:49]} {[%emt
00:01:21]} Rac8 {[%clk 01:03:49]} {[%emt 00:01:50]} 17. Re5 {[%clk 01:05:55]}
{[%emt 00:02:23]} Qb6 {[%clk 00:58:10]} {[%emt 00:06:10]} 18. Rae1 {[%clk
00:52:18]} {[%emt 00:14:07]} Rfd8 {[%clk 00:55:51]} {[%emt 00:02:50]} 19. Qe2
{[%clk 00:50:29]} {[%emt 00:02:17]} Bg4 {[%clk 00:44:58]} {[%emt 00:11:25]} 20.
Qc2 {[%clk 00:50:31]} {[%emt 00:00:27]} Bd6 {[%clk 00:44:04]} {[%emt 00:01:25]}
21. Rb5 {[%clk 00:44:46]} {[%emt 00:06:15]} Qd4 {[%clk 00:41:23]} {[%emt
00:03:11]} 22. Bxd6 {[%clk 00:19:23]} {[%emt 00:25:53]} Rxd6 {[%clk 00:34:38]}
{[%emt 00:07:15]} 23. Bf5 {[%clk 00:17:07]} {[%emt 00:02:45]} Rc7 {[%clk
00:29:10]} {[%emt 00:05:58]} 24. Bxg4 {[%clk 00:15:23]} {[%emt 00:02:14]} Qxg4
{[%clk 00:29:22]} {[%emt 00:00:17]} 25. Qb3 {[%clk 00:11:13]} {[%emt 00:04:41]}
Qd7 {[%clk 00:23:39]} {[%emt 00:06:13]} 26. Rbe5 {[%clk 00:09:46]} {[%emt
00:01:57]} Rd2 {[%clk 00:19:06]} {[%emt 00:05:04]} 27. Qb4 {[%clk 00:06:12]}
{[%emt 00:04:03]} 1/2-1/2

[Event "Skanderborg Skakklub SmukSkak EMT"]
[Site "Niels Ebbesenskolen, Skanderborg, Denmark"]
[Date "2020.08.23"]
[Round "5.5"]
[White "Pedersen, Nicolai Vesterbæk"]
[Black "Andersen, Rune"]
[Result "1-0"]
[TimeControl "90 min. til 40 træk, derefter 30 min. plus opsparet tid til resten af partiet med 30 sek. tillæg pr. træk fra træk ét."]
[WhiteTitle "IM"]
[WhiteFideId "1402340"]
[BlackFideId "1405683"]
[WhiteElo "2384"]
[BlackElo "2129"]

1. c4 {[%clk 01:30:52]} {[%emt 00:00:08]} e5 {[%clk 01:30:54]} {[%emt
00:00:06]} 2. Nf3 {[%clk 01:31:14]} {[%emt 00:00:08]} d6 {[%clk 01:30:10]}
{[%emt 00:01:13]} 3. Nc3 {[%clk 01:29:34]} {[%emt 00:02:10]} f5 {[%clk
01:29:19]} {[%emt 00:01:20]} 4. d3 {[%clk 01:26:40]} {[%emt 00:03:25]} Nf6
{[%clk 01:29:18]} {[%emt 00:00:30]} 5. g3 {[%clk 01:26:57]} {[%emt 00:00:14]}
Be7 {[%clk 01:28:41]} {[%emt 00:01:07]} 6. Bg2 {[%clk 01:27:09]} {[%emt
00:00:19]} O-O {[%clk 01:28:47]} {[%emt 00:00:23]} 7. O-O {[%clk 01:27:26]}
{[%emt 00:00:13]} Nbd7 {[%clk 01:27:11]} {[%emt 00:02:06]} 8. Rb1 {[%clk
01:26:41]} {[%emt 00:01:16]} c6 {[%clk 01:22:49]} {[%emt 00:04:50]} 9. b4
{[%clk 01:26:41]} {[%emt 00:00:30]} Qe8 {[%clk 01:22:08]} {[%emt 00:01:11]} 10.
b5 {[%clk 01:25:18]} {[%emt 00:01:53]} c5 {[%clk 01:21:59]} {[%emt 00:00:39]}
11. a4 {[%clk 01:21:48]} {[%emt 00:04:00]} Bd8 {[%clk 01:21:54]} {[%emt
00:00:34]} 12. Nd2 {[%clk 01:16:34]} {[%emt 00:05:45]} Rb8 {[%clk 01:21:07]}
{[%emt 00:01:17]} 13. Nb3 {[%clk 01:16:53]} {[%emt 00:00:11]} Kh8 {[%clk
01:15:24]} {[%emt 00:06:12]} 14. e3 {[%clk 01:14:26]} {[%emt 00:02:58]} h5
{[%clk 01:08:59]} {[%emt 00:06:54]} 15. f4 {[%clk 01:09:18]} {[%emt 00:05:38]}
h4 {[%clk 01:07:10]} {[%emt 00:02:19]} 16. gxh4 {[%clk 01:08:10]} {[%emt
00:01:39]} Nh5 {[%clk 01:03:01]} {[%emt 00:04:37]} 17. Bf3 {[%clk 01:06:18]}
{[%emt 00:02:23]} Ndf6 {[%clk 00:57:56]} {[%emt 00:05:35]} 18. Rb2 {[%clk
00:58:50]} {[%emt 00:07:58]} b6 {[%clk 00:53:26]} {[%emt 00:05:01]} 19. Rg2
{[%clk 00:52:48]} {[%emt 00:06:32]} e4 {[%clk 00:52:07]} {[%emt 00:01:48]} 20.
dxe4 {[%clk 00:51:59]} {[%emt 00:01:19]} fxe4 {[%clk 00:51:15]} {[%emt
00:01:21]} 21. Nxe4 {[%clk 00:51:56]} {[%emt 00:00:34]} Nxe4 {[%clk 00:49:55]}
{[%emt 00:01:50]} 22. Bxh5 {[%clk 00:51:42]} {[%emt 00:00:45]} Qe7 {[%clk
00:49:34]} {[%emt 00:00:51]} 23. Bg6 {[%clk 00:47:54]} {[%emt 00:04:17]} Nf6
{[%clk 00:49:33]} {[%emt 00:00:32]} 24. Bb2 {[%clk 00:47:39]} {[%emt 00:00:44]}
Kg8 {[%clk 00:45:27]} {[%emt 00:04:36]} 25. e4 {[%clk 00:45:05]} {[%emt
00:03:05]} Bh3 {[%clk 00:44:38]} {[%emt 00:01:18]} 26. e5 {[%clk 00:41:53]}
{[%emt 00:03:43]} dxe5 {[%clk 00:41:38]} {[%emt 00:03:30]} 27. fxe5 {[%clk
00:42:09]} {[%emt 00:00:14]} Bxg2 {[%clk 00:41:05]} {[%emt 00:01:03]} 28. exf6
{[%clk 00:41:45]} {[%emt 00:00:55]} Qe3+ {[%clk 00:37:23]} {[%emt 00:04:11]} 29.
Kxg2 {[%clk 00:41:51]} {[%emt 00:00:24]} gxf6 {[%clk 00:37:11]} {[%emt
00:00:41]} 30. Rf3 {[%clk 00:37:10]} {[%emt 00:05:12]} Qe7 {[%clk 00:31:05]}
{[%emt 00:06:36]} 31. Rg3 {[%clk 00:34:14]} {[%emt 00:03:27]} Bc7 {[%clk
00:31:13]} {[%emt 00:00:21]} 32. Bf7+ {[%clk 00:34:24]} {[%emt 00:00:20]} Kxf7
{[%clk 00:31:22]} {[%emt 00:00:22]} 33. Qh5+ {[%emt 00:00:41]} 1-0

[Event "Skanderborg Skakklub SmukSkak EMT"]
[Site "Niels Ebbesenskolen, Skanderborg, Denmark"]
[Date "2020.08.23"]
[Round "5.6"]
[White "Thøgersen, Rasmus"]
[Black "Brondt, Nicolai Kvist"]
[Result "1-0"]
[TimeControl "90 min. til 40 træk, derefter 30 min. plus opsparet tid til resten af partiet med 30 sek. tillæg pr. træk fra træk ét."]
[BlackTitle "FM"]
[WhiteFideId "1431412"]
[BlackFideId "1413848"]
[WhiteElo "2267"]
[BlackElo "2244"]

1. e4 {[%clk 01:30:58]} c5 {[%clk 01:30:12]} {[%emt 00:00:44]} 2. Nf3 {[%clk
01:31:19]} {[%emt 00:00:15]} e6 {[%clk 01:30:33]} {[%emt 00:00:09]} 3. d4
{[%clk 01:31:44]} {[%emt 00:00:05]} cxd4 {[%clk 01:30:59]} {[%emt 00:00:03]} 4.
Nxd4 {[%clk 01:32:09]} {[%emt 00:00:05]} Nc6 {[%clk 01:31:22]} {[%emt
00:00:07]} 5. Nc3 {[%clk 01:32:34]} {[%emt 00:00:05]} Qc7 {[%clk 01:31:48]}
{[%emt 00:00:04]} 6. g3 {[%clk 01:32:59]} {[%emt 00:00:05]} a6 {[%clk
01:30:59]} {[%emt 00:01:20]} 7. Bg2 {[%clk 01:33:23]} {[%emt 00:00:06]} h5
{[%clk 01:31:21]} {[%emt 00:00:09]} 8. h3 {[%clk 01:28:35]} {[%emt 00:05:18]}
h4 {[%clk 01:26:09]} {[%emt 00:05:42]} 9. g4 {[%clk 01:28:57]} {[%emt
00:00:07]} b5 {[%clk 01:16:20]} {[%emt 00:10:19]} 10. O-O {[%clk 01:25:57]}
{[%emt 00:03:30]} Bb7 {[%clk 01:16:05]} {[%emt 00:00:45]} 11. Re1 {[%clk
01:19:05]} {[%emt 00:07:23]} Nxd4 {[%clk 00:57:40]} {[%emt 00:18:55]} 12. Qxd4
{[%clk 01:19:04]} {[%emt 00:00:30]} Ne7 {[%clk 00:56:21]} {[%emt 00:01:49]} 13.
a4 {[%clk 01:07:04]} {[%emt 00:12:31]} b4 {[%clk 00:47:17]} {[%emt 00:09:34]}
14. Qxb4 {[%clk 01:04:16]} {[%emt 00:03:17]} Nf5 {[%clk 00:38:20]} {[%emt
00:09:27]} 15. Nd5 {[%clk 01:02:52]} {[%emt 00:01:54]} exd5 {[%clk 00:37:13]}
{[%emt 00:01:38]} 16. exf5+ {[%clk 01:00:22]} {[%emt 00:02:59]} Kd8 {[%clk
00:36:20]} {[%emt 00:01:23]} 17. Qd4 {[%clk 00:55:03]} {[%emt 00:05:49]} Qc5
{[%clk 00:32:44]} {[%emt 00:04:06]} 18. Bg5+ {[%clk 00:51:25]} {[%emt
00:04:08]} Kc7 {[%clk 00:30:40]} {[%emt 00:02:34]} 19. Bf4+ {[%clk 00:50:44]}
{[%emt 00:01:11]} Kb6 {[%clk 00:29:25]} {[%emt 00:01:45]} 20. Qd2 {[%clk
00:43:37]} {[%emt 00:07:37]} d4 {[%clk 00:27:21]} {[%emt 00:02:34]} 21. a5+
{[%clk 00:42:40]} {[%emt 00:01:28]} Ka7 {[%clk 00:24:43]} {[%emt 00:03:09]} 22.
Be5 {[%clk 00:43:02]} {[%emt 00:00:07]} 1-0